bitfinex-derivatives/quotes_BTCF0:USTF0_20250911
["timestamp","ask_amount","ask_price","bid_price","bid_amount"]
[1757601964826,0.88595214,114560.0,114550.0,0.86877395]
[1757601965931,0.07031214,114560.0,114550.0,0.79041]
[1757601966431,0.88591214,114560.0,114550.0,0.86877395]
[1757601966832,0.88591214,114560.0,114550.0,0.79041]
[1757601968226,0.07031214,114560.0,114550.0,0.86877395]
[1757601968422,0.88591214,114560.0,114550.0,0.86877395]
[1757601968819,0.88587214,114560.0,114550.0,0.86877395]
[1757601969024,0.07031214,114560.0,114550.0,0.86877395]
[1757601969425,0.99564214,114560.0,114550.0,0.86877395]
[1757601969629,0.88587214,114560.0,114550.0,0.86877395]
[1757601969831,0.88587214,114560.0,114550.0,1.58197395]
[1757601970634,0.88587214,114560.0,114550.0,1.50361]
[1757601971630,0.88583214,114560.0,114550.0,1.50361]
[1757601971830,0.07031214,114560.0,114550.0,1.72697395]
[1757601972038,1.7602,114570.0,114560.0,0.17561]
[1757601972332,2.57572,114570.0,114560.0,0.55693344]
[1757601972535,1.7602,114570.0,114560.0,1.18057958]
[1757601972737,2.57572,114570.0,114560.0,1.18057958]
[1757601973035,2.57572,114570.0,114560.0,1.07083344]
[1757601973233,1.5852,114570.0,114560.0,1.08877619]
[1757601973436,2.30114,114570.0,114560.0,1.04924647]
[1757601974139,2.30114,114570.0,114560.0,1.05796647]
[1757601975133,1.48562,114570.0,114560.0,1.05796647]
[1757601975331,2.30106,114570.0,114560.0,1.05796647]
[1757601976038,2.30106,114570.0,114560.0,1.05896647]
[1757601976336,2.30106,114570.0,114560.0,1.05996647]
[1757601977234,2.30106,114570.0,114560.0,1.06096647]
[1757601977834,2.30106,114570.0,114560.0,0.98259619]
[1757601978038,2.30106,114570.0,114560.0,1.09234233]
[1757601978234,2.30106,114570.0,114560.0,1.17960843]
[1757601978436,0.15569775,114600.0,114560.0,1.27815293]
[1757601978739,0.15569775,114600.0,114590.0,0.7216]
[1757601978938,1.08086775,114600.0,114590.0,0.78422772]
[1757601981538,1.33086775,114600.0,114590.0,0.78422772]
[1757601981743,1.33086775,114600.0,114590.0,0.92922772]
[1757601982242,1.33086775,114600.0,114590.0,0.56842772]
[1757601982641,1.33086775,114600.0,114590.0,0.56942772]
[1757601983746,1.33086775,114600.0,114590.0,0.56842772]
[1757601984746,1.33086775,114600.0,114590.0,0.83232772]
[1757601986649,1.33086775,114600.0,114590.0,0.68732772]
[1757601987747,1.33062775,114600.0,114590.0,0.68732772]
[1757601989541,1.33058775,114600.0,114590.0,0.68732772]
[1757601992048,0.51546775,114600.0,114590.0,0.68732772]
[1757601992349,1.33050775,114600.0,114590.0,0.68732772]
[1757601993152,1.33050775,114600.0,114590.0,0.69604772]
[1757601994156,0.51546775,114600.0,114590.0,0.69604772]
[1757601994353,1.33050775,114600.0,114590.0,0.69604772]
[1757601994952,1.33050775,114600.0,114590.0,0.63342]
[1757601996652,1.33050775,114600.0,114590.0,0.71171064]
[1757601998845,0.51546775,114600.0,114590.0,0.71171064]
[1757601999351,1.08038775,114600.0,114590.0,0.71171064]
[1757602000551,1.08038775,114600.0,114590.0,0.6961588]
[1757602000951,1.08034775,114600.0,114590.0,0.6961588]
[1757602002456,1.08030775,114600.0,114590.0,0.6961588]
[1757602002655,1.08030775,114600.0,114590.0,0.63342]
[1757602004543,0.26546775,114600.0,114590.0,0.63342]
[1757602004748,1.08026775,114600.0,114590.0,0.63342]
[1757602005454,1.08026775,114600.0,114590.0,0.71171064]
[1757602007155,0.26546775,114600.0,114590.0,0.71171064]
[1757602007361,1.08022775,114600.0,114590.0,0.71171064]
[1757602007961,1.08022775,114600.0,114590.0,1.07251064]
[1757602008259,1.08022775,114600.0,114590.0,0.99422]
[1757602008459,1.08022775,114600.0,114590.0,1.44352]
[1757602008659,1.08022775,114600.0,114590.0,1.77201814]
[1757602009956,1.08022775,114600.0,114590.0,1.77301814]
[1757602010552,0.95284987,114600.0,114590.0,1.77301814]
[1757602010752,0.95284987,114600.0,114590.0,1.79303396]
[1757602011162,0.95284987,114600.0,114590.0,1.79203396]
[1757602011854,0.95284987,114600.0,114590.0,1.93703396]
[1757602012157,0.95284987,114600.0,114590.0,1.85853582]
[1757602012356,0.95284987,114600.0,114590.0,1.96913802]
[1757602013060,0.95284987,114600.0,114590.0,1.97013802]
[1757602013461,0.95284987,114600.0,114590.0,2.04861242]
[1757602013758,0.13808987,114600.0,114590.0,1.93801022]
[1757602013962,0.95280987,114600.0,114590.0,1.93801022]
[1757602014261,0.95280987,114600.0,114590.0,1.93701022]
[1757602014463,0.95280987,114600.0,114590.0,1.48771022]
[1757602015262,0.95280987,114600.0,114590.0,1.48871022]
[1757602015454,0.95280987,114600.0,114590.0,1.41023582]
[1757602015655,0.95280987,114600.0,114590.0,1.51983802]
[1757602016462,0.95280987,114600.0,114590.0,1.52083802]
[1757602016963,0.13808987,114600.0,114590.0,1.52083802]
[1757602017162,0.95272987,114600.0,114590.0,1.52083802]
[1757602019469,0.95272987,114600.0,114590.0,1.59929966]
[1757602019756,0.95272987,114600.0,114590.0,1.48969746]
[1757602020163,0.13808987,114600.0,114590.0,1.48969746]
[1757602020364,0.95264987,114600.0,114590.0,1.68899746]
[1757602023962,0.95264987,114600.0,114590.0,1.72013802]
[1757602024185,0.13808987,114600.0,114590.0,1.72013802]
[1757602024362,0.88567987,114600.0,114590.0,1.68896202]
[1757602025060,0.88563987,114600.0,114590.0,1.93896202]
[1757602025260,0.88563987,114600.0,114590.0,1.97013802]
[1757602026968,0.95338987,114600.0,114590.0,1.97013802]
[1757602029162,0.88563987,114600.0,114590.0,1.97013802]
[1757602029864,0.95338987,114600.0,114590.0,1.97013802]
[1757602030662,0.88563987,114600.0,114590.0,1.97013802]
[1757602031264,0.95338987,114600.0,114590.0,1.97013802]
[1757602032559,0.88563987,114600.0,114590.0,1.97013802]
[1757602033369,0.07115987,114600.0,114590.0,1.72013802]
[1757602033568,0.88543987,114600.0,114590.0,1.61053582]
[1757602034568,0.88543987,114600.0,114590.0,1.70014149]
[1757602034769,0.07115987,114600.0,114590.0,1.59052]
[1757602034971,0.88543987,114600.0,114590.0,1.59052]
[1757602035168,0.62153987,114600.0,114590.0,1.59052]
[1757602036772,0.62153987,114600.0,114590.0,1.70014149]
[1757602038876,0.62153987,114600.0,114590.0,1.59052]
[1757602039077,0.81416,114600.0,114590.0,1.59052]
[1757602040873,0.69633347,114600.0,114590.0,1.59052]
[1757602041079,1.89669141,114610.0,114590.0,1.59052]
[1757602041275,1.82976141,114610.0,114600.0,0.61531126]
[1757602041484,2.64388141,114610.0,114600.0,0.61531126]
[1757602041873,2.58385141,114610.0,114600.0,0.87921126]
[1757602042274,2.58385141,114610.0,114600.0,0.75058788]
[1757602042679,2.58385141,114610.0,114600.0,0.75930788]
[1757602042882,2.51449,114610.0,114600.0,0.64979662]
[1757602043180,4e-05,114620.0,114600.0,1.05344379]
[1757602043381,0.81408,114610.0,114600.0,0.71620809]
[1757602043582,0.81408,114610.0,114600.0,1.18649923]
[1757602044579,0.81408,114610.0,114600.0,1.07700809]
[1757602045980,0.87966,114610.0,114600.0,1.07900809]
[1757602046574,0.06562,114620.0,114600.0,1.07900809]
[1757602046770,0.06562,114620.0,114610.0,0.438937]
[1757602046975,0.92319,114620.0,114610.0,0.45943157]
[1757602048376,1.53399,114620.0,114610.0,0.08302125]
[1757602048576,1.17319,114620.0,114610.0,0.08302125]
[1757602049181,1.17319,114620.0,114610.0,0.02049457]
[1757602049379,1.17319,114620.0,114610.0,0.08302125]
[1757602049971,1.17319,114620.0,114610.0,0.02049457]
[1757602050374,1.17319,114620.0,114610.0,0.08302125]
[1757602051283,1.17319,114620.0,114610.0,0.06252668]
[1757602052188,0.17167,114610.0,114600.0,0.36952]
[1757602053689,0.87938,114610.0,114600.0,0.43304668]
[1757602054386,0.87938,114610.0,114600.0,0.37052]
[1757602054587,0.87938,114610.0,114600.0,0.448657]
[1757602054777,0.87938,114610.0,114600.0,0.698657]
[1757602054982,0.8138,114610.0,114600.0,0.698657]
[1757602055384,0.8138,114610.0,114600.0,0.62052]
[1757602055583,0.8138,114610.0,114600.0,0.62152]
[1757602055985,0.8138,114610.0,114600.0,1.33472]
[1757602056396,0.8138,114610.0,114600.0,1.4129063]
[1757602057588,0.87938,114610.0,114600.0,1.4129063]
[1757602057784,0.98547,114610.0,114600.0,0.7136063]
[1757602058592,1.25300684,114610.0,114600.0,0.7136063]
[1757602059397,1.00300684,114610.0,114600.0,0.69802381]
[1757602060098,1.00292684,114610.0,114600.0,0.69802381]
[1757602060286,2.76276684,114610.0,114600.0,0.63542]
[1757602061298,1.94904684,114610.0,114600.0,0.63542]
[1757602061497,2.76276684,114610.0,114600.0,0.69801968]
[1757602061899,2.76276684,114610.0,114600.0,0.37152]
[1757602062397,2.76276684,114610.0,114600.0,0.4497063]
[1757602063400,2.76272684,114610.0,114600.0,0.4497063]
[1757602064795,1.94904684,114610.0,114600.0,0.4497063]
[1757602064994,2.76272684,114610.0,114600.0,0.4497063]
[1757602067899,2.76272684,114610.0,114600.0,0.7136063]
[1757602069392,2.76272684,114610.0,114600.0,0.63542]
[1757602069993,1.94904684,114610.0,114600.0,0.63542]
[1757602070295,2.76260684,114610.0,114600.0,0.63542]
[1757602071194,2.65651684,114610.0,114600.0,0.7136063]
[1757602071390,2.65651684,114610.0,114600.0,0.63542]
[1757602071595,2.76260684,114610.0,114600.0,0.63542]
[1757602071897,2.76260684,114610.0,114600.0,0.74491114]
[1757602072092,2.76260684,114610.0,114600.0,0.63542]
[1757602073303,2.76260684,114610.0,114600.0,0.74491114]
[1757602074503,2.76260684,114610.0,114600.0,0.71353681]
[1757602075798,1.94904684,114610.0,114600.0,0.71353681]
[1757602076002,2.65639684,114610.0,114600.0,0.63542]
[1757602076299,2.65639684,114610.0,114600.0,0.74491114]
[1757602076705,1.77737684,114610.0,114600.0,0.99491114]
[1757602076901,2.45546474,114610.0,114600.0,1.35470752]
[1757602078202,2.45546474,114610.0,114600.0,0.64150752]
[1757602078502,1.64202474,114610.0,114600.0,0.64150752]
[1757602078803,2.45542474,114610.0,114600.0,0.64150752]
[1757602079398,0.8134,114610.0,114600.0,0.64150752]
[1757602080503,0.8134,114610.0,114600.0,0.64211658]
[1757602082705,4e-05,114620.0,114600.0,0.72935228]
[1757602083007,4e-05,114620.0,114610.0,0.3608]
[1757602083199,0.8134,114620.0,114610.0,0.3608]
[1757602084002,0.8134,114620.0,114610.0,0.6247]
[1757602084206,0.8134,114620.0,114610.0,0.63342]
[1757602085411,0.8134,114620.0,114610.0,0.36952]
[1757602085412,0.99511,114620.0,114610.0,0.36952]
[1757602086310,0.99511,114620.0,114610.0,0.44753388]
[1757602087704,0.99511,114620.0,114610.0,0.47873943]
[1757602088904,0.99511,114620.0,114610.0,0.36952]
[1757602090613,0.99511,114620.0,114610.0,0.44747057]
[1757602092212,0.99511,114620.0,114610.0,0.36952]
[1757602092410,0.88137,114620.0,114610.0,0.47873943]
[1757602092609,0.81328,114620.0,114610.0,0.47873943]
[1757602093612,0.99499,114620.0,114610.0,0.47873943]
[1757602094509,0.99499,114620.0,114610.0,1.16068814]
[1757602095114,0.88137,114620.0,114610.0,1.16068814]
[1757602095416,0.81328,114620.0,114610.0,1.16068814]
[1757602095915,0.81328,114620.0,114610.0,1.08272]
[1757602096116,0.88137,114620.0,114610.0,1.08272]
[1757602096516,0.88137,114620.0,114610.0,1.1606808]
[1757602096816,0.88137,114620.0,114610.0,1.26990023]
[1757602097016,0.88137,114620.0,114610.0,1.19193943]
[1757602098318,0.06813,114620.0,114610.0,1.19193943]
[1757602098521,0.88133,114620.0,114610.0,1.19193943]
[1757602099319,0.06813,114620.0,114610.0,1.19193943]
[1757602099622,0.88129,114620.0,114610.0,1.08272]
[1757602101420,0.06813,114620.0,114610.0,1.08272]
[1757602101612,0.88129,114620.0,114610.0,1.08272]
[1757602102615,0.88129,114620.0,114610.0,1.14864057]
[1757602102616,4e-05,114620.0,114610.0,1.14864057]
[1757602102817,4e-05,114620.0,114610.0,1.58864057]
[1757602103014,4e-05,114620.0,114610.0,1.5106481]
[1757602103319,0.81316,114620.0,114610.0,1.5106481]
[1757602104420,4e-05,114620.0,114610.0,1.6197991]
[1757602105219,4e-05,114620.0,114610.0,1.5106481]
[1757602106122,0.81312,114620.0,114610.0,1.5106481]
[1757602106424,0.81312,114620.0,114610.0,1.9599481]
[1757602106725,0.81312,114620.0,114610.0,2.06914822]
[1757602107116,0.81312,114620.0,114610.0,1.9599481]
[1757602107323,0.81312,114620.0,114610.0,2.10809845]
[1757602108818,0.81312,114620.0,114610.0,2.03011288]
[1757602110522,0.81304,114620.0,114610.0,2.03011288]
[1757602111122,4e-05,114620.0,114610.0,2.13929267]
[1757602111424,0.813,114620.0,114610.0,2.13929267]
[1757602111725,4e-05,114620.0,114610.0,2.03011288]
[1757602111918,0.813,114620.0,114610.0,2.03011288]
[1757602112426,0.81296,114630.0,114610.0,1.74834098]
[1757602112719,0.81296,114630.0,114620.0,0.57722521]
[1757602112920,0.81292,114630.0,114620.0,0.46811732]
[1757602114124,1.82755,114640.0,114620.0,0.46811732]
[1757602114326,1.82755,114640.0,114630.0,0.54781834]
[1757602114327,1.93289,114640.0,114630.0,0.54781834]
[1757602114526,2.74577,114640.0,114630.0,0.54781834]
[1757602114726,2.74577,114640.0,114630.0,0.43772431]
[1757602115428,2.74777,114640.0,114630.0,0.43772431]
[1757602117128,1.93589,114640.0,114630.0,0.43772431]
[1757602117318,2.74873,114640.0,114630.0,0.43772431]
[1757602117718,1.93589,114640.0,114630.0,0.43772431]
[1757602117926,2.74873,114640.0,114630.0,0.46889403]
[1757602118231,1.93389,114640.0,114630.0,0.73279403]
[1757602118530,2.74673,114640.0,114630.0,0.73279403]
[1757602118732,2.64135,114640.0,114630.0,0.73279403]
[1757602119428,2.74569,114640.0,114630.0,0.73279403]
[1757602120031,1.93289,114640.0,114630.0,0.73279403]
[1757602120232,2.74569,114640.0,114630.0,0.6237]
[1757602121933,1.93289,114640.0,114630.0,0.6237]
[1757602122135,2.74569,114640.0,114630.0,0.6237]
[1757602124143,1.93289,114640.0,114630.0,0.6237]
[1757602124436,2.74565,114640.0,114630.0,0.6237]
[1757602124630,1.93289,114640.0,114630.0,0.73279403]
[1757602125031,2.74561,114640.0,114630.0,0.73279403]
[1757602125930,2.74557,114640.0,114630.0,0.73279403]
[1757602126837,1.93289,114640.0,114630.0,0.73279403]
[1757602127031,2.74557,114640.0,114630.0,0.73279403]
[1757602127838,2.74557,114640.0,114630.0,0.74151403]
[1757602128731,1.93289,114640.0,114630.0,0.74151403]
[1757602129133,2.74553,114640.0,114630.0,0.74151403]
[1757602129543,2.74553,114640.0,114630.0,0.63242]
[1757602130047,2.74553,114640.0,114630.0,0.74151403]
[1757602132047,2.74553,114640.0,114630.0,0.63242]
[1757602133554,1.93289,114640.0,114630.0,0.63242]
[1757602133854,2.74549,114640.0,114630.0,0.63242]
[1757602134052,2.74549,114640.0,114630.0,0.74178987]
[1757602139752,2.74549,114640.0,114630.0,0.63242]
[1757602140150,2.99549,114640.0,114630.0,0.55604365]
[1757602140456,2.99549,114640.0,114630.0,0.36852]
[1757602141044,2.99525,114640.0,114630.0,0.44671081]
[1757602141358,2.18289,114640.0,114630.0,0.44671081]
[1757602141658,0.17309,114640.0,114630.0,0.44671081]
[1757602142057,0.70861,114640.0,114630.0,0.44671081]
[1757602142258,0.17309,114640.0,114630.0,0.44671081]
[1757602142958,0.70861,114640.0,114630.0,0.44671081]
[1757602143160,0.98545,114640.0,114630.0,0.36852]
[1757602143860,0.98545,114640.0,114630.0,0.44659621]
[1757602143861,0.17309,114640.0,114630.0,0.44659621]
[1757602144059,0.98545,114640.0,114630.0,0.36852]
[1757602145656,0.98545,114640.0,114630.0,0.47788987]
[1757602147458,0.98545,114640.0,114630.0,0.36852]
[1757602148654,0.98545,114640.0,114630.0,0.44658916]
[1757602150962,0.98545,114640.0,114630.0,0.71048916]
[1757602151767,0.98545,114640.0,114630.0,0.74178987]
[1757602152453,1.23545,114640.0,114630.0,0.74178987]
[1757602152661,1.23545,114640.0,114630.0,0.81988094]
[1757602152856,1.23545,114640.0,114630.0,0.71051107]
[1757602154166,1.23545,114640.0,114630.0,0.63242]
[1757602156670,1.23545,114640.0,114630.0,0.71051107]
[1757602159275,1.23545,114640.0,114630.0,0.44661107]
[1757602159470,1.23529,114640.0,114630.0,0.44661107]
[1757602159977,1.23529,114640.0,114630.0,0.00872]
[1757602160278,0.1857,114630.0,114620.0,0.3608]
[1757602160970,0.20322798,114630.0,114620.0,0.3608]
[1757602161471,0.06524,114620.0,114610.0,0.43889107]
[1757602161667,0.99326,114620.0,114610.0,0.43889107]
[1757602161867,0.99326,114620.0,114610.0,0.3608]
[1757602162467,0.18106,114620.0,114610.0,0.3608]
[1757602162775,0.99326,114620.0,114610.0,0.3608]
[1757602163173,0.18106,114620.0,114610.0,0.3608]
[1757602163370,0.99326,114620.0,114610.0,0.43889107]
[1757602163875,0.18106,114620.0,114610.0,0.43889107]
[1757602164077,0.99326,114620.0,114610.0,0.43889107]
[1757602164267,0.18106,114620.0,114610.0,0.44089107]
[1757602164468,0.99326,114620.0,114610.0,0.3628]
[1757602164868,1.00699875,114620.0,114610.0,0.3628]
[1757602165574,0.19479875,114620.0,114610.0,0.3628]
[1757602165970,0.19479875,114620.0,114610.0,0.37675]
[1757602166274,1.00699875,114620.0,114610.0,0.37675]
[1757602166477,2.76643875,114620.0,114610.0,0.37675]
[1757602166669,2.76643875,114620.0,114610.0,0.45484107]
[1757602167070,2.76639875,114620.0,114610.0,0.45484107]
[1757602167270,2.76639875,114620.0,114610.0,0.44089107]
[1757602167471,1.95423875,114620.0,114610.0,0.44089107]
[1757602167673,2.76643875,114620.0,114610.0,0.37675]
[1757602167874,2.76643875,114620.0,114610.0,0.45484107]
[1757602168080,1.95423875,114620.0,114610.0,0.44089107]
[1757602168279,2.76643875,114620.0,114610.0,0.44089107]
[1757602168478,2.76643875,114620.0,114610.0,0.3628]
[1757602169178,2.76643875,114620.0,114610.0,0.44089107]
[1757602169373,2.76643875,114620.0,114610.0,0.3628]
[1757602170874,1.95423875,114620.0,114610.0,0.3628]
[1757602171078,2.76639875,114620.0,114610.0,0.3628]
[1757602174178,1.95423875,114620.0,114610.0,0.3628]
[1757602174479,2.76639875,114620.0,114610.0,0.3628]
[1757602176084,2.76639875,114620.0,114610.0,0.3628]
[1757602176673,2.75262,114620.0,114610.0,0.37675]
[1757602177583,2.75262,114620.0,114610.0,0.45484107]
[1757602179084,2.75262,114620.0,114610.0,0.3628]
[1757602179278,2.75262,114620.0,114610.0,0.37675]
[1757602182087,2.75262,114620.0,114610.0,0.3628]
[1757602182781,2.75262,114620.0,114610.0,0.37675]
[1757602183185,2.75262,114620.0,114610.0,0.45484107]
[1757602183585,2.75262,114620.0,114610.0,0.71874107]
[1757602184487,2.75262,114620.0,114610.0,0.70479107]
[1757602184689,2.75262,114620.0,114610.0,0.71874107]
[1757602187084,2.75262,114620.0,114610.0,0.70479107]
[1757602187282,3.00262,114620.0,114610.0,0.44089107]
[1757602189493,3.00262,114620.0,114610.0,0.3628]
[1757602190288,0.18106,114610.0,114600.0,0.07809107]
[1757602192493,0.49936875,114610.0,114600.0,0.08009107]
[1757602192694,0.17737,114600.0,114590.0,0.07830814]
[1757602193001,0.17737,114590.0,114580.0,0.3608]
[1757602193390,0.98925,114590.0,114580.0,0.3608]
[1757602194697,1.00185867,114590.0,114580.0,0.3608]
[1757602196099,1.00185867,114590.0,114580.0,0.3648]
[1757602196399,1.00185867,114590.0,114580.0,0.3678]
[1757602197001,1.00185867,114590.0,114580.0,0.007]
[1757602197400,1.61265867,114590.0,114580.0,0.007]
[1757602197604,1.61261867,114590.0,114580.0,0.007]
[1757602198304,1.61265867,114590.0,114580.0,0.007]
[1757602199106,0.80077867,114590.0,114580.0,0.007]
[1757602199305,1.61261867,114590.0,114580.0,0.006]
[1757602199704,1.61261867,114590.0,114580.0,0.005]
[1757602199906,0.80077867,114590.0,114580.0,0.005]
[1757602200198,1.61265867,114590.0,114580.0,0.005]
[1757602200402,0.18997867,114590.0,114580.0,0.11789]
[1757602200608,0.98921,114590.0,114580.0,0.47869]
[1757602201003,1.00169549,114590.0,114580.0,0.47869]
[1757602201406,0.98925,114590.0,114580.0,0.47869]
[1757602201906,0.17737,114590.0,114580.0,0.47869]
[1757602202211,0.98921,114590.0,114580.0,0.47869]
[1757602202506,1.00137611,114590.0,114580.0,0.47569]
[1757602203005,1.00137611,114590.0,114580.0,0.3628]
[1757602203211,1.00241611,114590.0,114580.0,0.3608]
[1757602203520,1.00241611,114590.0,114570.0,0.47369]
[1757602203521,0.17737,114580.0,114570.0,0.47369]
[1757602204402,0.98921,114580.0,114570.0,0.47369]
[1757602204808,0.10928,114580.0,114570.0,0.78952]
[1757602205003,0.92108,114580.0,114570.0,0.78952]
[1757602205810,0.98917,114580.0,114570.0,0.72369]
[1757602206214,0.98917,114580.0,114570.0,0.72469]
[1757602208219,0.98917,114580.0,114570.0,0.72569]
[1757602210120,0.98917,114580.0,114570.0,0.98959]
[1757602210520,0.92108,114580.0,114570.0,1.05542]
[1757602210714,0.92108,114580.0,114570.0,1.06787954]
[1757602211319,0.92108,114580.0,114570.0,1.05542]
[1757602211620,0.98917,114580.0,114570.0,0.98959]
[1757602213023,1.82821,114590.0,114570.0,1.05542]
[1757602213220,1.8694,114590.0,114580.0,0.53693]
[1757602213425,2.68108,114590.0,114580.0,0.53693]
[1757602213626,2.74917,114590.0,114580.0,0.53693]
[1757602214434,2.74917,114590.0,114580.0,0.47369]
[1757602216224,2.74917,114590.0,114580.0,0.73759]
[1757602218721,1.93749,114590.0,114580.0,0.73759]
[1757602218922,1.93749,114590.0,114580.0,0.55173044]
[1757602219119,2.74909,114590.0,114580.0,0.43884044]
[1757602219524,2.74909,114590.0,114580.0,0.55173044]
[1757602219724,1.93749,114590.0,114580.0,0.55173044]
[1757602219925,2.74905,114590.0,114580.0,0.55173044]
[1757602225030,2.74905,114590.0,114580.0,0.43884044]
[1757602225031,2.76671373,114590.0,114580.0,0.43884044]
[1757602225230,3.01671373,114590.0,114580.0,0.43884044]
[1757602225931,2.99905,114590.0,114580.0,0.3608]
[1757602226530,2.99905,114590.0,114570.0,0.55213044]
[1757602226531,0.18012,114580.0,114570.0,0.55213044]
[1757602227432,0.99156,114580.0,114570.0,0.55213044]
[1757602227930,0.18012,114580.0,114570.0,0.81803044]
[1757602228126,0.92748,114580.0,114570.0,1.13127044]
[1757602228333,1.94429,114590.0,114580.0,0.17912]
[1757602228533,2.75569,114590.0,114580.0,0.61796044]
[1757602228830,1.94429,114590.0,114580.0,0.61796044]
[1757602229429,1.94429,114590.0,114580.0,0.53992]
[1757602229622,1.76012,114590.0,114580.0,1.07426242]
[1757602229826,2.57148,114590.0,114580.0,0.81036242]
[1757602230132,2.57148,114590.0,114580.0,0.91973229]
[1757602231427,2.68756,114590.0,114580.0,0.91973229]
[1757602232028,1.76012,114590.0,114580.0,0.93219949]
[1757602232233,2.57144,114590.0,114580.0,0.93219949]
[1757602234038,2.57144,114590.0,114580.0,0.82282962]
[1757602234440,2.57144,114590.0,114580.0,0.93219949]
[1757602235042,2.68752,114590.0,114580.0,0.93219949]
[1757602236335,2.68752,114590.0,114580.0,1.28335079]
[1757602236336,1.76012,114590.0,114580.0,1.28335079]
[1757602236541,2.57136,114590.0,114580.0,1.19609949]
[1757602236844,2.57136,114590.0,114580.0,1.08672962]
[1757602237139,0.18438875,114610.0,114600.0,0.17989]
[1757602237337,0.11608,114610.0,114600.0,1.01085435]
[1757602237537,0.92724,114610.0,114600.0,1.01085435]
[1757602238138,0.99128,114610.0,114600.0,1.01085435]
[1757602238443,0.11608,114610.0,114600.0,0.90149]
[1757602238641,0.93124,114610.0,114600.0,0.90149]
[1757602238836,0.12008,114610.0,114600.0,0.90149]
[1757602239043,0.93124,114610.0,114600.0,0.90149]
[1757602239244,0.93124,114610.0,114600.0,0.9795193]
[1757602239641,0.12008,114610.0,114600.0,0.9795193]
[1757602239941,0.9312,114610.0,114600.0,0.9795193]
[1757602240132,0.12008,114610.0,114600.0,0.9795193]
[1757602240337,0.93116,114610.0,114600.0,0.9795193]
[1757602240539,0.12008,114610.0,114600.0,0.9795193]
[1757602240740,0.93116,114610.0,114600.0,0.9795193]
[1757602241330,0.9952,114610.0,114600.0,0.9795193]
[1757602242341,1.06462513,114610.0,114600.0,0.9795193]
[1757602244441,1.06462513,114610.0,114600.0,0.9695193]
[1757602244841,1.06462513,114610.0,114600.0,0.89149]
[1757602245946,1.06462513,114610.0,114600.0,0.83489]
[1757602246142,1.06462513,114610.0,114600.0,0.9129193]
[1757602248943,1.06462513,114610.0,114600.0,1.1768193]
[1757602249145,1.06442513,114610.0,114600.0,1.1768193]
[1757602249444,1.06442513,114610.0,114600.0,1.09879]
[1757602252540,1.31442513,114610.0,114600.0,0.9855]
[1757602252940,1.31442513,114610.0,114600.0,1.09251]
[1757602254748,1.31426513,114610.0,114600.0,1.09251]
[1757602256047,1.31426513,114610.0,114600.0,0.9855]
[1757602258040,1.30426513,114610.0,114600.0,0.9855]
[1757602258246,1.30426513,114610.0,114600.0,0.2639]
[1757602258550,1.66506513,114610.0,114600.0,0.2639]
[1757602259142,1.66506513,114610.0,114590.0,0.3608]
[1757602259349,0.17369,114600.0,114590.0,0.3608]
[1757602259647,0.17369,114600.0,114590.0,0.43888365]
[1757602260044,0.17369,114600.0,114580.0,0.3608]
[1757602260045,0.06345,114590.0,114580.0,0.07808365]
[1757602260246,0.98425,114590.0,114570.0,0.43888365]
[1757602260444,0.17369,114580.0,114570.0,0.54589365]
[1757602261043,0.98425,114580.0,114570.0,0.54589365]
[1757602261550,0.98425,114580.0,114570.0,0.53589365]
[1757602262551,0.98425,114580.0,114570.0,0.60371365]
[1757602262849,0.98425,114580.0,114570.0,0.53589365]
[1757602263045,0.17369,114580.0,114570.0,0.53589365]
[1757602263247,0.98421,114580.0,114570.0,0.53589365]
[1757602263451,0.98421,114580.0,114570.0,0.53789365]
[1757602263951,0.97421,114580.0,114570.0,0.53789365]
[1757602264151,0.97421,114580.0,114570.0,0.45981]
[1757602264353,0.97421,114580.0,114570.0,0.5378378]
[1757602264945,0.99155375,114580.0,114570.0,0.3528]
[1757602265142,0.99155375,114580.0,114570.0,0.4308278]
[1757602265650,0.18103375,114580.0,114570.0,0.5378378]
[1757602265850,0.99155375,114580.0,114570.0,0.5378378]
[1757602266555,0.99155375,114580.0,114570.0,0.3528]
[1757602268459,0.99155375,114580.0,114570.0,0.002]
[1757602268658,1.24155375,114580.0,114570.0,0.002]
[1757602269257,1.24151375,114580.0,114570.0,0.002]
[1757602270154,1.24147375,114580.0,114570.0,0.002]
[1757602271061,0.43103375,114580.0,114570.0,0.002]
[1757602271258,0.99147375,114580.0,114570.0,0.46981]
[1757602271458,0.18103375,114580.0,114570.0,0.46981]
[1757602271652,0.99147375,114580.0,114570.0,0.53763]
[1757602273155,0.99147375,114580.0,114570.0,0.54957579]
[1757602273356,0.99147375,114580.0,114570.0,0.53763]
[1757602275063,0.99147375,114580.0,114570.0,0.46981]
[1757602275264,0.18103375,114580.0,114570.0,0.46981]
[1757602275562,0.99143375,114580.0,114570.0,0.46981]
[1757602275763,0.18103375,114580.0,114570.0,0.46981]
[1757602275963,0.99143375,114580.0,114570.0,0.46981]
[1757602276664,0.18103375,114580.0,114570.0,0.46981]
[1757602276861,0.99139375,114580.0,114570.0,0.46981]
[1757602278365,0.99139375,114580.0,114570.0,0.73371]
[1757602280367,0.18103375,114580.0,114570.0,0.73371]
[1757602280667,0.99135375,114580.0,114570.0,0.73371]
[1757602281870,0.18103375,114580.0,114570.0,0.73371]
[1757602282070,0.99135375,114580.0,114570.0,0.73371]
[1757602283265,0.99135375,114580.0,114570.0,0.72371]
[1757602283666,0.99135375,114580.0,114570.0,0.6247]
[1757602285273,0.99135375,114580.0,114570.0,0.7027278]
[1757602285768,0.99135375,114580.0,114570.0,0.2639]
[1757602286272,0.99135375,114580.0,114570.0,0.3419278]
[1757602287462,0.99135375,114580.0,114570.0,0.4474878]
[1757602287969,0.99135375,114580.0,114570.0,0.3419278]
[1757602289172,0.99135375,114580.0,114570.0,0.2639]
[1757602289371,0.99135375,114580.0,114570.0,0.36946]
[1757602289570,0.17535,114570.0,114560.0,0.82873022]
[1757602289875,0.17535,114570.0,114560.0,0.72317022]
[1757602290575,0.98551,114570.0,114560.0,0.72317022]
[1757602290771,0.98551,114570.0,114560.0,0.82873022]
[1757602290973,0.98551,114570.0,114560.0,0.82973022]
[1757602291571,0.98551,114570.0,114560.0,0.83173022]
[1757602291869,0.98551,114570.0,114560.0,0.72617022]
[1757602292081,0.98551,114570.0,114560.0,0.83173022]